fUST/lending_fUST_20250921
["ID","MTS","AMOUNT","RATE_DAILY","PERIOD"]
[386651956,1758450677155,-585.99,0.00021917,2]
[386651957,1758450677165,-13209.4,0.00021917,2]
[386651958,1758450677174,-480.0,0.00021917,2]
[386651959,1758450677183,-399.5545657,0.00021917,2]
[386651960,1758450677192,-480.0,0.00021917,2]
[386651961,1758450677202,-480.0,0.00021917,2]
[386651962,1758450677211,-480.0,0.00021917,2]
[386651963,1758450677220,-538.75,0.00021917,2]
[386651964,1758450677230,-480.0,0.00021917,2]
[386651965,1758450677239,-3848.78,0.00021917,2]
[386651966,1758450677248,-480.0,0.00021917,2]
[386651967,1758450677258,-488.94641156,0.00021917,2]
[386651968,1758450677267,-200.0,0.00021917,2]
[386651969,1758450677276,-492.7461765,0.00021917,2]
[386651970,1758450677285,-480.0,0.00021917,2]
[386651971,1758450677294,-480.0,0.00021917,2]
[386651972,1758450677303,-480.0,0.00021917,2]
[386651973,1758450677312,-480.0,0.00021917,2]
[386651974,1758450677322,-480.0,0.00021917,2]
[386651975,1758450677332,-480.0,0.00021917,2]
[386651976,1758450677341,-480.0,0.00021917,2]
[386651977,1758450677351,-1109.33,0.00021917,2]
[386651978,1758450677360,-749.03,0.00021917,2]
[386651979,1758450677370,-715.29,0.00021917,2]
[386651980,1758450677380,-970.5,0.00021917,2]
[386651981,1758450677390,-151.0,0.00021917,2]
[386651982,1758450677399,-151.0,0.00021917,2]
[386651983,1758450677409,-151.0,0.00021917,2]
[386651984,1758450677418,-197.749859,0.00021917,2]
[386651985,1758450677427,-480.0,0.00021917,2]
[386651986,1758450677513,-480.0,0.00021917,2]
[386651987,1758450677523,-1406.33,0.00021917,2]
[386651988,1758450677533,-528.32595358,0.00021917,2]
[386651989,1758450677543,-2494.88,0.00021917,2]
[386651990,1758450677551,-480.0,0.00021917,2]
[386651991,1758450677561,-503.84,0.00021917,2]
[386651992,1758450677570,-403.90364687,0.00021917,2]
[386651993,1758450677580,-540.03,0.00021917,2]
[386651994,1758450677589,-233.09227744,0.00021917,2]
[386651995,1758450677599,-2365.7,0.00021917,2]
[386651996,1758450677608,-480.0,0.00021917,2]
[386651997,1758450677618,-480.0,0.00021917,2]
[386651998,1758450677627,-717.17,0.00021917,2]
[386651999,1758450677636,-1136.14,0.00021917,2]
[386652000,1758450677646,-480.0,0.00021917,2]
[386652001,1758450677655,-1143.86,0.00021917,2]
[386652002,1758450677665,-596.43434918,0.00021917,2]
[386652003,1758450677674,-480.0,0.00021917,2]
[386652004,1758450677684,-1462.33,0.00021917,2]
[386652005,1758450677693,-480.0,0.00021917,2]
[386652006,1758450677702,-480.0,0.00021917,2]
[386652007,1758450677711,-480.0,0.00021917,2]
[386652008,1758450677721,-180.52289267,0.00021917,2]
[386652009,1758450677730,-489.70740089,0.00021917,2]
[386652010,1758450677739,-1886.72,0.00021917,2]
[386652011,1758450677749,-480.0,0.00021917,2]
[386652012,1758450677760,-480.0,0.00021917,2]
[386652013,1758450677770,-480.0,0.00021917,2]
[386652014,1758450677779,-480.0,0.00021917,2]
[386652015,1758450677788,-480.0,0.00021917,2]
[386652016,1758450677797,-480.0,0.00021917,2]
[386652017,1758450677806,-480.0,0.00021917,2]
[386652018,1758450677816,-480.0,0.00021917,2]
[386652019,1758450677825,-499.54,0.00021917,2]
[386652020,1758450677835,-480.0,0.00021917,2]
[386652021,1758450677844,-480.0,0.00021917,2]
[386652022,1758450677854,-599.27,0.00021917,2]
[386652023,1758450677864,-1136.27,0.00021917,2]
[386652024,1758450677873,-480.0,0.00021917,2]
[386652025,1758450677882,-2248.31,0.00021917,2]
[386652026,1758450677892,-897.88,0.00021917,2]
[386652027,1758450677901,-480.0,0.00021917,2]
[386652028,1758450677910,-1185.39,0.00021917,2]
[386652029,1758450677919,-480.0,0.00021917,2]
[386652030,1758450677929,-480.0,0.00021917,2]
[386652031,1758450677938,-501.39005476,0.00021917,2]
[386652032,1758450677947,-1126.63,0.00021917,2]
[386652033,1758450677956,-1043.68,0.00021917,2]
[386652034,1758450677966,-599.0,0.00021917,2]
[386652035,1758450677975,-480.0,0.00021917,2]
[386652036,1758450677985,-480.0,0.00021917,2]
[386652037,1758450677994,-480.0,0.00021917,2]
[386652038,1758450678003,-756.19,0.00021917,2]
[386652039,1758450678013,-480.0,0.00021917,2]
[386652040,1758450678023,-480.0,0.00021917,2]
[386652041,1758450678033,-480.0,0.00021917,2]
[386652042,1758450678043,-1323.22,0.00021917,2]
[386652043,1758450678052,-480.0,0.00021917,2]
[386652044,1758450678062,-480.0,0.00021917,2]
[386652045,1758450678071,-435.0,0.00021917,2]
[386652046,1758450678082,-500.0,0.00021918,2]
[386652047,1758450678098,-175.939137,0.00021918,2]
[386652048,1758450678116,-500.0,0.00021918,2]
[386652049,1758450678135,-500.0,0.00021918,2]
[386652050,1758450678154,-151.59304801,0.00021918,2]
[386652051,1758450678173,-152.46397795,0.00021918,2]
[386652052,1758450678190,-500.0,0.00021918,2]
[386652053,1758450678209,-153.082331,0.00021918,7]
[386652054,1758450678224,-150.0,0.0002194,2]
[386652055,1758450678240,-2500.0,0.00021964,2]
[386652056,1758450678260,-5011.83,0.00022,7]
[386652057,1758450678279,-151.0,0.00022,7]
[386652058,1758450678292,-151.0,0.00022,7]
[386652059,1758450678312,-151.0,0.00022,7]
[386652060,1758450678326,-594.81,0.00022,2]
[386652061,1758450678347,-13157.99453988,0.00022044,2]
[386652062,1758450678361,-435.0,0.00022063,2]
[386652063,1758450678377,-560.0,0.00022086,2]
[386652064,1758450678392,-150.0,0.000221,10]
[386652065,1758450678407,-5000.0,0.00022107,2]
[386652066,1758450678424,-435.0,0.00022154,2]
[386652067,1758450678439,-657.3834965,0.00022159,2]
[386652068,1758450678454,-2000.0,0.00022159,2]
[386652069,1758450678470,-2000.0,0.00022159,2]
[386652070,1758450678484,-151.0,0.00022159,7]
[386652071,1758450678499,-151.0,0.00022159,7]
[386652072,1758450678527,-4830.0192275,0.00022169,2]
[386652073,1758450678542,-480.0,0.00022191,2]
[386652074,1758450678557,-480.0,0.00022191,2]
[386652075,1758450678572,-480.0,0.00022191,2]
[386652076,1758450678587,-151.0,0.00022191,7]
[386652077,1758450678601,-480.0,0.00022191,2]
[386652078,1758450678615,-213.277159,0.00022191,7]
[386652079,1758450678629,-583.25694639,0.00022191,2]
[386652080,1758450678644,-525.71,0.00022191,2]
[386652081,1758450678658,-480.0,0.00022191,2]
[386652082,1758450678673,-494.3,0.00022191,2]
[386652083,1758450678686,-480.0,0.00022191,2]
[386652084,1758450678701,-480.0,0.00022191,2]
[386652085,1758450678715,-151.0,0.00022191,7]
[386652086,1758450678729,-151.0,0.00022191,7]
[386652087,1758450678743,-480.0,0.00022191,2]
[386652088,1758450678758,-480.0,0.00022191,2]
[386652089,1758450678773,-480.0,0.00022191,2]
[386652090,1758450678787,-480.0,0.00022191,2]
[386652091,1758450678802,-519.82150617,0.00022191,2]
[386652092,1758450678817,-480.0,0.00022191,2]
[386652093,1758450678831,-493.28,0.00022191,2]
[386652094,1758450678846,-233.58319196,0.00022191,2]
[386652095,1758450678861,-585.99,0.00022191,2]
[386652096,1758450678877,-13209.4,0.00022191,2]
[386652097,1758450678891,-480.0,0.00022191,2]
[386652098,1758450678906,-487.75533888,0.00022191,2]
[386652099,1758450678923,-279.32169311,0.00022191,2]
[386652100,1758450678937,-538.75,0.00022191,2]
[386652101,1758450678951,-480.0,0.00022191,2]
[386652102,1758450678966,-3848.78,0.00022191,2]
[386652103,1758450678981,-480.0,0.00022191,2]
[386652104,1758450678997,-480.0,0.00022191,2]
[386652105,1758450679014,-480.0,0.00022191,2]
[386652106,1758450679030,-480.0,0.00022191,2]
[386652107,1758450679046,-312.19664976,0.00022191,2]
[386652108,1758450679177,-480.0,0.00022191,2]
[386652109,1758450679187,-480.0,0.00022191,2]
[386652110,1758450679198,-1109.33,0.00022191,2]
[386652111,1758450679208,-749.03,0.00022191,2]
[386652112,1758450679218,-715.29,0.00022191,2]
[386652113,1758450679228,-970.5,0.00022191,2]
[386652114,1758450679239,-480.0,0.00022191,2]
[386652115,1758450679248,-480.0,0.00022191,2]
[386652116,1758450679258,-1406.33,0.00022191,2]
[386652117,1758450679267,-2494.88,0.00022191,2]
[386652118,1758450679278,-480.0,0.00022191,2]
[386652119,1758450679287,-503.84,0.00022191,2]
[386652120,1758450679298,-540.03,0.00022191,2]
[386652121,1758450679307,-2365.7,0.00022191,2]
[386652122,1758450679317,-480.0,0.00022191,2]
[386652123,1758450679326,-717.17,0.00022191,2]
[386652124,1758450679336,-480.0,0.00022191,2]
[386652125,1758450679345,-1136.14,0.00022191,2]
[386652126,1758450679355,-480.0,0.00022191,2]
[386652127,1758450679365,-1143.86,0.00022191,2]
[386652128,1758450679375,-480.0,0.00022191,2]
[386652129,1758450679384,-1462.33,0.00022191,2]
[386652130,1758450679393,-480.0,0.00022191,2]
[386652131,1758450679403,-480.0,0.00022191,2]
[386652132,1758450679412,-480.0,0.00022191,2]
[386652133,1758450679422,-505.46915603,0.00022191,2]
[386652134,1758450679431,-1886.72,0.00022191,2]
[386652135,1758450679440,-480.0,0.00022191,2]
[386652136,1758450679449,-480.0,0.00022191,2]
[386652137,1758450679459,-517.89772216,0.00022191,2]
[386652138,1758450679468,-480.0,0.00022191,2]
[386652139,1758450679478,-480.0,0.00022191,2]
[386652140,1758450679487,-480.0,0.00022191,2]
[386652141,1758450679497,-480.0,0.00022191,2]
[386652142,1758450679506,-499.54,0.00022191,2]
[386652143,1758450679515,-480.0,0.00022191,2]
[386652144,1758450679525,-214.65275827,0.00022191,2]
[386652145,1758450679535,-599.27,0.00022191,2]
[386652146,1758450679544,-1136.27,0.00022191,2]
[386652147,1758450679553,-480.0,0.00022191,2]
[386652148,1758450679563,-2248.31,0.00022191,2]
[386652149,1758450679573,-897.88,0.00022191,2]
[386652150,1758450679582,-480.0,0.00022191,2]
[386652151,1758450679592,-1185.39,0.00022191,2]
[386652152,1758450679601,-480.0,0.00022191,2]
[386652153,1758450679611,-480.0,0.00022191,2]
[386652154,1758450679620,-1126.63,0.00022191,2]
[386652155,1758450679629,-1043.68,0.00022191,2]
[386652156,1758450679639,-599.0,0.00022191,2]
[386652157,1758450679648,-480.0,0.00022191,2]
[386652158,1758450679657,-480.0,0.00022191,2]
[386652159,1758450679668,-480.0,0.00022191,2]
[386652160,1758450679677,-756.19,0.00022191,2]
[386652161,1758450679687,-480.0,0.00022191,2]
[386652162,1758450679696,-480.0,0.00022191,2]
[386652163,1758450679706,-480.0,0.00022191,2]
[386652164,1758450679715,-1323.22,0.00022191,2]
[386652165,1758450679725,-480.0,0.00022191,2]
[386652166,1758450679734,-480.0,0.00022191,2]
[386652167,1758450679744,-500.0,0.00022192,2]
[386652168,1758450679754,-500.0,0.00022192,2]
[386652169,1758450679764,-500.65471073,0.00022192,2]
[386652170,1758450679773,-500.0,0.00022192,2]
[386652171,1758450679783,-16074.85,0.00022193,2]
[386652172,1758450679792,-2000.0,0.000222,2]
[386652173,1758450679802,-2000.0,0.000222,2]
[386652174,1758450679811,-2000.0,0.000222,2]
[386652175,1758450679821,-2000.0,0.000222,2]
[386652176,1758450679830,-150.0,0.000222,5]
[386652177,1758450679840,-3000.0,0.00022212,2]
[386652178,1758450679850,-721.94704638,0.00022212,2]
[386652179,1758450679859,-435.0,0.00022218,2]
[386652180,1758450679869,-142819.93043569,0.0002222,2]
[386652181,1758450679878,-151.0,0.0002222,7]
[386652182,1758450679888,-151.0,0.0002222,7]
[386652183,1758450679898,-151.0,0.0002222,7]
[386652184,1758450679907,-154.336327,0.0002222,7]
[386652185,1758450679918,-173.704372,0.0002222,7]
[386652186,1758450679928,-151.0,0.0002222,7]
[386652187,1758450679938,-151.0,0.0002222,7]
[386652188,1758450679947,-151.0,0.0002222,3]
[386652189,1758450679957,-1000.0,0.0002222,2]
[386652190,1758450679967,-1000.0,0.0002222,2]
[386652191,1758450679976,-1000.0,0.0002222,2]
[386652192,1758450679985,-1000.0,0.0002222,2]
[386652193,1758450679995,-1000.0,0.0002222,2]
[386652194,1758450680005,-1000.0,0.0002222,2]
[386652195,1758450680014,-1000.0,0.0002222,2]
[386652196,1758450680024,-1000.0,0.0002222,2]
[386652197,1758450680033,-1000.0,0.0002222,2]
[386652198,1758450680042,-1000.0,0.0002222,2]
[386652199,1758450680052,-160.15618041,0.0002222,2]
[386652200,1758450680062,-4000.0,0.00022222,4]
[386652201,1758450680071,-160.0,0.00022242,5]
[386652202,1758450680080,-168.0,0.00022265,2]
[386652203,1758450680091,-164.98963149,0.00022274,2]
[386652204,1758450680100,-11893.75261245,0.00022365,2]
[386652205,1758450680110,-435.0,0.00022384,2]
[386652206,1758450680119,-301.0,0.000224,2]
[386652207,1758450680130,-1099.89227555,0.0002241,7]
[386652208,1758450680139,-160.0,0.0002241,7]
[386652209,1758450680149,-435.0,0.00022413,2]
[386652210,1758450680158,-999.18175569,0.00022427,2]
[386652211,1758450680168,-3500.0,0.0002246,2]
[386652212,1758450680178,-168.0,0.00022461,2]
[386652213,1758450680187,-480.0,0.00022465,2]
[386652214,1758450680196,-480.0,0.00022465,2]
[386652215,1758450680205,-480.0,0.00022465,2]
[386652216,1758450680214,-525.71,0.00022465,2]
[386652217,1758450680224,-453.43033567,0.00022465,2]
[386652218,1758450680234,-494.3,0.00022465,2]
[386652219,1758450680243,-399.784695,0.00022465,7]
[386652220,1758450680254,-399.784695,0.00022465,7]
[386652221,1758450680264,-399.784695,0.00022465,7]
[386652222,1758450680274,-399.784695,0.00022465,7]
[386652223,1758450680284,-480.0,0.00022465,2]
[386652224,1758450680295,-480.0,0.00022465,2]
[386652225,1758450680304,-480.0,0.00022465,2]
[386652226,1758450680314,-480.0,0.00022465,2]
[386652227,1758450680325,-480.0,0.00022465,2]
[386652228,1758450680340,-480.0,0.00022465,2]
[386652229,1758450680349,-509.80161875,0.00022465,2]
[386652230,1758450680359,-585.99,0.00022465,2]
[386652231,1758450680368,-13209.4,0.00022465,2]
[386652232,1758450680379,-555.81649541,0.00022465,2]
[386652233,1758450680388,-538.75,0.00022465,2]
[386652234,1758450680398,-548.41654058,0.00022465,2]
[386652235,1758450680407,-3848.78,0.00022465,2]
[386652236,1758450680417,-480.0,0.00022465,2]
[386652237,1758450680428,-487.61215009,0.00022465,2]
[386652238,1758450680437,-480.0,0.00022465,2]
[386652239,1758450680447,-480.0,0.00022465,2]
[386652240,1758450680456,-480.0,0.00022465,2]
[386652241,1758450680466,-480.0,0.00022465,2]
[386652242,1758450680475,-1109.33,0.00022465,2]
[386652243,1758450680485,-749.03,0.00022465,2]
[386652244,1758450680494,-715.29,0.00022465,2]
[386652245,1758450680503,-970.5,0.00022465,2]
[386652246,1758450680513,-480.0,0.00022465,2]
[386652247,1758450680523,-480.0,0.00022465,2]
[386652248,1758450680533,-1406.33,0.00022465,2]
[386652249,1758450680542,-480.0,0.00022465,2]
[386652250,1758450680553,-2494.88,0.00022465,2]
[386652251,1758450680563,-503.84,0.00022465,2]
[386652252,1758450680572,-540.03,0.00022465,2]
[386652253,1758450680581,-2365.7,0.00022465,2]
[386652254,1758450680593,-480.0,0.00022465,2]
[386652255,1758450680603,-717.17,0.00022465,2]
[386652256,1758450680612,-480.0,0.00022465,2]
[386652257,1758450680621,-1136.14,0.00022465,2]
[386652258,1758450680631,-480.0,0.00022465,2]
[386652259,1758450680641,-1143.86,0.00022465,2]
[386652260,1758450680651,-572.58388793,0.00022465,2]
[386652261,1758450680660,-1462.33,0.00022465,2]
[386652262,1758450680670,-480.0,0.00022465,2]
[386652263,1758450680679,-480.0,0.00022465,2]
[386652264,1758450680689,-480.0,0.00022465,2]
[386652265,1758450680698,-1886.72,0.00022465,2]
[386652266,1758450680708,-480.0,0.00022465,2]
[386652267,1758450680717,-428.30041284,0.00022465,2]
[386652268,1758450680726,-480.0,0.00022465,2]
[386652269,1758450680735,-480.0,0.00022465,2]
[386652270,1758450680745,-480.0,0.00022465,2]
[386652271,1758450680754,-451.59394837,0.00022465,2]
[386652272,1758450680763,-499.54,0.00022465,2]
[386652273,1758450680772,-480.0,0.00022465,2]
[386652274,1758450680782,-599.27,0.00022465,2]
[386652275,1758450680791,-1136.27,0.00022465,2]
[386652276,1758450680800,-375.45834112,0.00022465,2]
[386652277,1758450680809,-2248.31,0.00022465,2]
[386652278,1758450680817,-897.88,0.00022465,2]
[386652279,1758450680827,-480.0,0.00022465,2]
[386652280,1758450680838,-1185.39,0.00022465,2]
[386652281,1758450680848,-480.0,0.00022465,2]
[386652282,1758450680857,-1126.63,0.00022465,2]
[386652283,1758450680866,-1043.68,0.00022465,2]
[386652284,1758450680875,-599.0,0.00022465,2]
[386652285,1758450680884,-480.0,0.00022465,2]
[386652286,1758450680893,-480.0,0.00022465,2]
[386652287,1758450680904,-480.0,0.00022465,2]
[386652288,1758450680913,-756.19,0.00022465,2]
[386652289,1758450680923,-480.0,0.00022465,2]
[386652290,1758450680932,-480.0,0.00022465,2]
[386652291,1758450680941,-480.0,0.00022465,2]
[386652292,1758450680951,-1323.22,0.00022465,2]
[386652293,1758450680960,-480.0,0.00022465,2]
[386652294,1758450680969,-480.0,0.00022465,2]
[386652295,1758450680979,-500.0,0.00022466,2]
[386652296,1758450680989,-500.0,0.00022466,2]
[386652297,1758450680999,-500.0,0.00022466,2]
[386652298,1758450681010,-300.0,0.00022488,2]
[386652299,1758450681019,-8907.6542176,0.000225,4]
[386652300,1758450681029,-2175.22870349,0.00022512,2]
[386652301,1758450681038,-660.0,0.00022633,2]
[386652302,1758450681047,-435.0,0.0002266,2]
[386652303,1758450681057,-587.0,0.0002266,2]
[386652304,1758450681066,-435.0,0.00022664,2]
[386652305,1758450681075,-2509.85528191,0.00022707,2]
[386652306,1758450681085,-2500.0,0.00022707,2]
[386652307,1758450681095,-480.0,0.00022739,2]
[386652308,1758450681104,-480.0,0.00022739,2]
[386652309,1758450681114,-152.184519,0.00022739,7]
[386652310,1758450681124,-480.0,0.00022739,2]
[386652311,1758450681133,-525.71,0.00022739,2]
[386652312,1758450681145,-494.3,0.00022739,2]
[386652313,1758450681157,-480.0,0.00022739,2]
[386652314,1758450681168,-480.0,0.00022739,2]
[386652315,1758450681177,-480.0,0.00022739,2]
[386652316,1758450681190,-480.0,0.00022739,2]
[386652317,1758450681199,-480.0,0.00022739,2]
[386652318,1758450681209,-480.0,0.00022739,2]
[386652319,1758450681218,-585.99,0.00022739,2]
[386652320,1758450681227,-13209.4,0.00022739,2]
[386652321,1758450681236,-538.75,0.00022739,2]
[386652322,1758450681245,-3848.78,0.00022739,2]
[386652323,1758450681255,-480.0,0.00022739,2]
[386652324,1758450681265,-480.0,0.00022739,2]
[386652325,1758450681274,-480.0,0.00022739,2]
[386652326,1758450681284,-480.0,0.00022739,2]
[386652327,1758450681293,-480.0,0.00022739,2]
[386652328,1758450681302,-1109.33,0.00022739,2]
[386652329,1758450681311,-749.03,0.00022739,2]
[386652330,1758450681321,-715.29,0.00022739,2]
[386652331,1758450681330,-970.5,0.00022739,2]
[386652332,1758450681341,-480.0,0.00022739,2]
[386652333,1758450681350,-480.0,0.00022739,2]
[386652334,1758450681361,-1406.33,0.00022739,2]
[386652335,1758450681370,-492.57521216,0.00022739,2]
[386652336,1758450681476,-2494.88,0.00022739,2]
[386652337,1758450681485,-503.84,0.00022739,2]
[386652338,1758450681495,-540.03,0.00022739,2]
[386652339,1758450681504,-2365.7,0.00022739,2]
[386652340,1758450681514,-480.0,0.00022739,2]
[386652341,1758450681523,-717.17,0.00022739,2]
[386652342,1758450681532,-480.0,0.00022739,2]
[386652343,1758450681541,-1136.14,0.00022739,2]
[386652344,1758450681550,-1143.86,0.00022739,2]
[386652345,1758450681559,-480.0,0.00022739,2]
[386652346,1758450681569,-1462.33,0.00022739,2]
[386652347,1758450681578,-480.0,0.00022739,2]
[386652348,1758450681588,-480.0,0.00022739,2]
[386652349,1758450681597,-480.0,0.00022739,2]
[386652350,1758450681606,-1886.72,0.00022739,2]
[386652351,1758450681616,-480.0,0.00022739,2]
[386652352,1758450681625,-480.0,0.00022739,2]
[386652353,1758450681635,-480.0,0.00022739,2]
[386652354,1758450681644,-480.0,0.00022739,2]
[386652355,1758450681653,-499.54,0.00022739,2]
[386652356,1758450681662,-480.0,0.00022739,2]
[386652357,1758450681671,-599.27,0.00022739,2]
[386652358,1758450681681,-1136.27,0.00022739,2]
[386652359,1758450681690,-2248.31,0.00022739,2]
[386652360,1758450681699,-897.88,0.00022739,2]
[386652361,1758450681708,-480.0,0.00022739,2]
[386652362,1758450681717,-1185.39,0.00022739,2]
[386652363,1758450681727,-480.0,0.00022739,2]
[386652364,1758450681736,-1126.63,0.00022739,2]
[386652365,1758450681745,-1043.68,0.00022739,2]
[386652366,1758450681754,-599.0,0.00022739,2]
[386652367,1758450681763,-480.0,0.00022739,2]
[386652368,1758450681773,-480.0,0.00022739,2]
[386652369,1758450681783,-480.0,0.00022739,2]
[386652370,1758450681793,-756.19,0.00022739,2]
[386652371,1758450681802,-480.0,0.00022739,2]
[386652372,1758450681812,-480.0,0.00022739,2]
[386652373,1758450681821,-480.0,0.00022739,2]
[386652374,1758450681830,-1323.22,0.00022739,2]
[386652375,1758450681841,-480.0,0.00022739,2]
[386652376,1758450681850,-625.09752809,0.00022739,2]
[386652377,1758450681860,-500.0,0.0002274,2]
[386652378,1758450681869,-304.8224536,0.0002274,2]
[386652379,1758450681878,-608.51617541,0.0002274,2]
[386652380,1758450681888,-168.0,0.00022756,2]
[386652381,1758450681897,-197.73933243,0.0002276,2]
[386652382,1758450681907,-3500.0,0.0002276,2]
[386652383,1758450681916,-168.0,0.000228,2]
[386652384,1758450681925,-151.0,0.00022821,7]
[386652385,1758450681934,-151.0,0.00022821,7]
[386652386,1758450681945,-164.0,0.00022877,8]
[386652387,1758450681954,-151.0,0.000229,7]
[386652388,1758450681963,-151.0,0.000229,7]
[386652389,1758450681972,-594.81,0.00022914,2]
[386652390,1758450681981,-576.25571609,0.00022995,2]
[386652391,1758450681990,-201.62966623,0.00022999,2]
[386652392,1758450682000,-2956.51674888,0.00023,2]
[386652393,1758450682011,-1389.0,0.00023,2]
[386652394,1758450682020,-200.0,0.00023,2]
[386652395,1758450682030,-91499.58268809,0.00023,10]
[386652396,1758450682357,-359.99275684,0.00019178,2]
[386652397,1758450682374,-120.00724316,0.00019178,2]
[386652398,1758450682385,-480.0,0.00019178,2]
[386652399,1758450682395,-480.0,0.00019178,2]
[386652400,1758450682404,-497.32787078,0.00019452,2]
[386652401,1758450682414,-678.46421,0.00019452,2]
[386652402,1758450682424,-480.0,0.00019452,2]
[386652403,1758450682433,-480.0,0.00019452,2]
[386652404,1758450682443,-678.46421,0.00019726,2]
[386652405,1758450682452,-480.0,0.00019726,2]
[386652406,1758450682461,-678.46421,0.0002,2]
[386652407,1758450682471,-678.46421,0.0002,2]
[386652408,1758450682481,-678.46421,0.000205,2]
[386652409,1758450682491,-678.46421,0.000205,2]
[386652410,1758450682500,-678.46421,0.00020824,2]
[386652411,1758450682510,-480.0,0.00021369,2]
[386652412,1758450682520,-480.0,0.00021643,2]
[386652413,1758450682530,-480.0,0.00021917,2]
[386652414,1758450682538,-292.95296744,0.00023,10]
[386652415,1758450682855,-480.0,0.00019178,2]
[386652416,1758450682865,-480.0,0.00019178,2]
[386652417,1758450682874,-5736.31009928,0.00019178,2]
[386652418,1758450682886,-803.43468931,0.00019178,2]
[386652419,1758450682898,-4497.25253306,0.00019178,2]
[386652420,1758450682913,-17182.00000001,0.00019178,2]
[386652421,1758450683153,-405.4841737,0.00019178,2]
[386652422,1758450684432,9298.538233,0.00018978,2]
[386652423,1758450684455,10000.01,0.00018978,2]
[386652424,1758450684478,10000.01,0.00018978,2]
[386652425,1758450684499,10000.01,0.00018978,2]
[386652426,1758450684522,10000.01,0.00018978,2]
[386652427,1758450684543,10000.01,0.00018978,2]
[386652428,1758450684566,10000.01,0.00018978,2]
[386652429,1758450684587,10000.01,0.00018978,2]
[386652430,1758450684609,10000.01,0.00018978,2]
[386652431,1758450684631,10000.01,0.00018978,2]
[386652432,1758450684653,270701.371767,0.00018978,2]
[386652434,1758450724460,647.290696,0.00018152,2]
[386652438,1758450820491,9352.719304,0.00018978,2]
[386652439,1758450820516,10000.01,0.00018978,2]
[386652440,1758450820539,10000.01,0.00018978,2]
[386652441,1758450820560,10000.01,0.00018978,2]
[386652442,1758450820584,10000.01,0.00018978,2]
[386652443,1758450820606,10000.01,0.00018978,2]
[386652444,1758450820628,10000.01,0.00018978,2]
[386652445,1758450820649,10000.01,0.00018978,2]
[386652446,1758450820672,10000.01,0.00018978,2]
[386652447,1758450820693,10000.01,0.00018978,2]
[386652448,1758450820717,104659.23748518,0.00018978,2]
[386652449,1758450840901,-300.0,0.00019073,2]
[386652450,1758450840928,-1200.0,0.00019074,2]
[386652451,1758450840958,-500.0,0.00019074,2]
[386652452,1758450840989,-500.0,0.00019074,2]
[386652453,1758450841018,-500.0,0.00019074,2]
[386652454,1758450841045,-281.22352729,0.00019074,2]
[386652455,1758450841074,-500.0,0.00019074,2]
[386652456,1758450841105,-500.0,0.00019074,2]
[386652457,1758450841132,-168.26602514,0.00019074,2]
[386652458,1758450841160,-500.0,0.00019074,2]
[386652459,1758450851126,-300.0,0.00019073,2]